bitfinex-derivatives/quotes_BTCF0:USTF0_20250106
["timestamp","ask_amount","ask_price","bid_price","bid_amount"]
[1736145994201,0.19747391,99725.0,99724.0,0.001]
[1736145995300,0.047135,99725.0,99724.0,0.001]
[1736145999214,0.05700605,99725.0,99724.0,0.001]
[1736145999708,0.05700605,99725.0,99724.0,0.771]
[1736146001809,0.01187105,99725.0,99724.0,0.771]
[1736146002812,0.01187105,99725.0,99724.0,0.95089533]
[1736146003806,0.01187105,99725.0,99724.0,0.771]
[1736146004215,0.002,99725.0,99724.0,0.771]
[1736146010113,0.002,99725.0,99724.0,0.001]
[1736146013316,0.002,99725.0,99724.0,0.771]
[1736146013621,0.002,99725.0,99724.0,0.001]
[1736146015015,0.047135,99725.0,99724.0,0.001]
[1736146015421,0.09591267,99725.0,99724.0,0.001]
[1736146016223,0.047135,99725.0,99724.0,0.001]
[1736146017223,0.19742566,99725.0,99724.0,0.001]
[1736146022524,0.047135,99725.0,99724.0,0.001]
[1736146027421,0.19742566,99725.0,99724.0,0.001]
[1736146028028,0.045136,99722.0,99721.0,0.01015653]
[1736146028332,0.045138,99719.0,99714.0,0.18026954]
[1736146028935,0.045138,99719.0,99716.0,0.18026954]
[1736146030227,0.12019317,99718.0,99716.0,0.18026954]
[1736146031421,0.12119317,99718.0,99716.0,0.18026954]
[1736146031623,0.12219317,99718.0,99716.0,0.18126954]
[1736146032526,0.12219317,99718.0,99717.0,0.77]
[1736146033732,0.12119317,99718.0,99717.0,0.77]
[1736146033938,0.12219317,99718.0,99717.0,0.771]
[1736146034131,0.002,99718.0,99717.0,0.95126954]
[1736146035634,0.12219317,99718.0,99717.0,0.18126954]
[1736146039145,0.12219317,99718.0,99717.0,0.001]
[1736146039736,0.13244717,99718.0,99717.0,0.001]
[1736146040841,0.012254,99718.0,99717.0,0.18126954]
[1736146041743,0.012254,99718.0,99717.0,0.001]
[1736146048738,0.012254,99718.0,99717.0,0.24181917]
[1736146050148,0.012254,99718.0,99717.0,0.001]
[1736146051650,0.012254,99718.0,99713.0,0.09201531]
[1736146051651,0.045139,99717.0,99713.0,0.09201531]
[1736146051846,0.012254,99718.0,99713.0,0.09201531]
[1736146052049,0.533054,99718.0,99713.0,0.09201531]
[1736146052240,0.04514,99714.0,99713.0,0.33284512]
[1736146052552,0.04514,99714.0,99713.0,0.32302981]
[1736146052952,0.04514,99714.0,99713.0,0.32402981]
[1736146053250,0.04514,99714.0,99672.0,0.3608]
[1736146053251,0.15,99714.0,99672.0,0.3608]
[1736146053447,0.045154,99682.0,99681.0,0.49306647]
[1736146053848,0.045154,99682.0,99681.0,0.41936647]
[1736146054253,0.045155,99680.0,99674.0,0.045158]
[1736146054445,0.3608,99679.0,99674.0,0.045158]
[1736146055252,0.045156,99678.0,99674.0,0.045158]
[1736146055457,0.3608,99679.0,99669.0,0.49306647]
[1736146055753,0.3608,99679.0,99677.0,0.045156]
[1736146056050,0.04877853,99678.0,99677.0,0.045156]
[1736146057154,0.04977853,99678.0,99677.0,0.045156]
[1736146057551,0.001,99678.0,99677.0,0.045156]
[1736146058850,0.001,99678.0,99670.0,0.0817]
[1736146059060,0.046156,99678.0,99672.0,0.045159]
[1736146059960,0.11963153,99677.0,99672.0,0.045159]
[1736146060151,0.11963153,99677.0,99673.0,0.77]
[1736146061757,0.12063153,99677.0,99673.0,0.77]
[1736146062358,0.12063153,99677.0,99672.0,0.045159]
[1736146062551,0.001,99677.0,99672.0,0.045159]
[1736146062854,0.046157,99677.0,99672.0,0.815159]
[1736146063650,0.046157,99677.0,99672.0,0.045159]
[1736146063856,0.001,99677.0,99672.0,0.045159]
[1736146064057,0.045158,99674.0,99672.0,0.045159]
[1736146065563,0.046158,99674.0,99672.0,0.045159]
[1736146066057,0.001,99674.0,99652.0,0.3608]
[1736146066255,0.3608,99657.0,99635.0,0.18020863]
[1736146066465,0.3608,99642.0,99636.0,0.045175]
[1736146066656,0.045173,99641.0,99637.0,0.0728]
[1736146066960,0.36140001,99642.0,99638.0,0.01568965]
[1736146067163,0.3608,99642.0,99638.0,0.01568965]
[1736146067362,0.3608,99642.0,99639.0,0.01568965]
[1736146067557,0.3608,99642.0,99640.0,0.01568965]
[1736146067953,0.3608,99642.0,99641.0,0.01568965]
[1736146068755,0.3618,99642.0,99641.0,0.01568965]
[1736146069252,0.3608,99642.0,99641.0,0.01568965]
[1736146069559,0.3618,99642.0,99641.0,0.01568965]
[1736146069863,0.3618,99642.0,99637.0,0.117975]
[1736146070247,0.3618,99642.0,99641.0,0.77]
[1736146071259,0.406972,99642.0,99641.0,0.77]
[1736146072655,0.001,99642.0,99641.0,0.77]
[1736146072852,0.08961234,99655.0,99641.0,0.77]
[1736146073054,0.08961234,99655.0,99645.0,0.045171]
[1736146073255,0.3608,99649.0,99645.0,0.045171]
[1736146073662,0.04517,99648.0,99646.0,0.01569077]
[1736146073853,0.04517,99648.0,99647.0,0.01569077]
[1736146075262,0.04517,99648.0,99647.0,0.01669077]
[1736146080057,0.36140001,99649.0,99647.0,0.01669077]
[1736146080262,0.3608,99649.0,99647.0,0.01669077]
[1736146080462,0.3608,99649.0,99648.0,0.01569077]
[1736146081862,0.3608,99649.0,99648.0,0.01669077]
[1736146087474,0.3608,99649.0,99648.0,0.001]
[1736146088078,0.4808,99649.0,99648.0,0.001]
[1736146088780,0.5296171,99649.0,99648.0,0.001]
[1736146090081,0.4096171,99649.0,99648.0,0.001]
[1736146090275,0.4096171,99649.0,99648.0,0.00014091]
[1736146090276,0.54184314,99649.0,99648.0,0.00014091]
[1736146090675,0.4096171,99649.0,99648.0,0.00014091]
[1736146090880,0.4096171,99649.0,99648.0,0.77014091]
[1736146091975,0.4096171,99649.0,99648.0,0.00014091]
[1736146100898,0.0488171,99649.0,99648.0,0.00014091]
[1736146101204,0.17993757,99652.0,99648.0,0.00014091]
[1736146101390,0.17993757,99652.0,99651.0,0.045168]
[1736146101590,0.17993757,99652.0,99651.0,0.815168]
[1736146102096,0.17993757,99658.0,99654.0,0.045167]
[1736146102293,0.3608,99657.0,99655.0,0.0762]
[1736146102604,0.3608,99657.0,99656.0,0.045166]
[1736146102788,0.3608,99657.0,99656.0,0.119766]
[1736146104293,0.3628,99657.0,99656.0,0.119766]
[1736146104493,0.3628,99657.0,99656.0,0.191866]
[1736146104999,0.3648,99657.0,99656.0,0.191866]
[1736146110201,0.51490238,99657.0,99656.0,0.191866]
[1736146111412,0.3648,99657.0,99656.0,0.191866]
[1736146113599,0.3648,99657.0,99655.0,0.0762]
[1736146114805,0.37091652,99657.0,99655.0,0.0762]
[1736146115006,0.37091652,99657.0,99652.0,0.045168]
[1736146115307,0.3648,99657.0,99653.0,0.0767]
[1736146115505,0.3648,99657.0,99654.0,0.77]
[1736146116101,0.3638,99657.0,99654.0,0.77]
[1736146116300,0.15006742,99655.0,99654.0,0.77]
[1736146117707,0.15006742,99656.0,99654.0,0.77]
[1736146118208,0.001,99655.0,99654.0,0.77]
[1736146118708,0.003,99655.0,99654.0,0.77]
[1736146119303,0.002,99655.0,99654.0,0.77]
[1736146120701,0.15206742,99655.0,99654.0,0.77]
[1736146120900,0.15306742,99655.0,99654.0,0.77]
[1736146122106,0.003,99655.0,99654.0,0.77]
[1736146123701,0.003,99655.0,99654.0,0.95020863]
[1736146124910,0.003,99655.0,99654.0,0.77]
[1736146125907,0.003,99655.0,99654.0,0.778376]
[1736146133115,0.003,99655.0,99654.0,0.77]
[1736146136516,0.15306742,99655.0,99654.0,0.77]
[1736146139722,0.003,99655.0,99654.0,0.77]
[1736146141424,0.003,99655.0,99654.0,0.95052439]
[1736146142921,0.003,99655.0,99654.0,0.77]
[1736146148721,0.12317915,99655.0,99654.0,0.77]
[1736146150622,0.003,99655.0,99654.0,0.77]
[1736146152129,0.003,99655.0,99654.0,1.01046706]
[1736146153834,0.12319524,99655.0,99654.0,1.01046706]
[1736146155035,0.12319524,99655.0,99654.0,0.77]
[1736146155441,0.003,99655.0,99654.0,0.77]
[1736146156732,0.12319524,99655.0,99654.0,0.77]
[1736146158234,0.12319524,99655.0,99654.0,1.01072483]
[1736146158235,0.003,99655.0,99654.0,1.01072483]
[1736146161334,0.15006742,99664.0,99663.0,0.045163]
[1736146162035,0.15006742,99664.0,99663.0,0.815163]
[1736146162428,0.15006742,99669.0,99668.0,0.045161]
[1736146163730,0.007,99669.0,99668.0,0.045161]
[1736146164733,0.011,99669.0,99668.0,0.045161]
[1736146168329,0.16123173,99669.0,99668.0,0.045161]
[1736146169833,0.011,99669.0,99668.0,0.045161]
[1736146170034,0.011,99669.0,99665.0,0.1805142]
[1736146170236,0.3608,99666.0,99665.0,0.1795142]
[1736146170452,0.3908,99666.0,99649.0,0.3314481]
[1736146170635,0.045165,99659.0,99649.0,0.3314481]
[1736146171136,0.045165,99659.0,99649.0,0.27202483]
[1736146171438,0.3608,99650.0,99649.0,0.27202483]
[1736146172136,0.40960156,99650.0,99649.0,0.0313]
[1736146173742,0.40960156,99650.0,99649.0,0.0323]
[1736146175234,0.51091897,99650.0,99649.0,0.0323]
[1736146176939,0.5197936,99650.0,99649.0,0.0323]
[1736146177542,0.36967463,99650.0,99649.0,0.0323]
[1736146180943,0.36967463,99650.0,99649.0,0.001]
[1736146181139,0.46967463,99650.0,99633.0,0.0332]
[1736146181341,0.3608,99634.0,99633.0,0.0332]
[1736146182051,0.7216,99634.0,99633.0,0.0332]
[1736146182346,0.7216,99634.0,99633.0,0.0352]
[1736146182544,0.7216,99634.0,99633.0,0.05089421]
[1736146182745,0.7216,99634.0,99633.0,0.04989421]
[1736146182947,0.7226,99634.0,99633.0,0.0352]
[1736146183743,0.87271897,99634.0,99633.0,0.0352]
[1736146185456,0.77142256,99634.0,99633.0,0.0352]
[1736146186853,0.7226,99634.0,99633.0,0.0352]
[1736146187642,0.73181764,99634.0,99633.0,0.0352]
[1736146187843,0.045177,99632.0,99623.0,0.078181]
[1736146188042,0.3608,99624.0,99623.0,0.078181]
[1736146189647,0.3618,99624.0,99623.0,0.078181]
[1736146190756,0.001,99624.0,99623.0,0.078181]
[1736146191054,0.11971039,99628.0,99627.0,0.045179]
[1736146191262,0.11971039,99628.0,99627.0,0.815179]
[1736146191449,0.11971039,99629.0,99627.0,0.815179]
[1736146191649,0.11971039,99629.0,99628.0,0.0323]
[1736146192754,0.41519364,99634.0,99628.0,0.0323]
[1736146193955,0.11971039,99632.0,99628.0,0.077478]
[1736146194145,0.11971039,99632.0,99629.0,0.033]
[1736146194948,0.11971039,99632.0,99630.0,0.045178]
[1736146195648,0.12071039,99632.0,99630.0,0.045178]
[1736146197156,0.11971039,99632.0,99630.0,0.045178]
[1736146197456,0.12071039,99632.0,99630.0,0.045178]
[1736146198251,0.11971039,99631.0,99630.0,0.045178]
[1736146199651,0.001,99632.0,99630.0,0.045178]
[1736146200351,0.001,99631.0,99630.0,0.045178]
[1736146200851,0.001,99632.0,99630.0,0.045178]
[1736146201550,0.37061765,99634.0,99632.0,0.045177]
[1736146201753,0.37001764,99634.0,99632.0,0.045177]
[1736146202864,0.3608,99634.0,99632.0,0.045177]
[1736146203758,0.3618,99634.0,99632.0,0.045177]
[1736146205455,0.3618,99634.0,99633.0,0.77]
[1736146206466,0.3618,99634.0,99632.0,0.045177]
[1736146206964,0.3618,99634.0,99629.0,0.033]
[1736146207556,0.045177,99632.0,99629.0,0.033]
[1736146209064,0.14974311,99630.0,99629.0,0.033]
[1736146209366,0.55572111,99630.0,99629.0,0.033]
[1736146210768,0.45480094,99630.0,99629.0,0.033]
[1736146211062,0.45580094,99630.0,99629.0,0.033]
[1736146215364,0.63611085,99630.0,99629.0,0.033]
[1736146216067,0.63611085,99630.0,99601.0,0.045191]
[1736146216267,0.63611085,99630.0,99614.0,0.045185]
[1736146216268,0.3608,99615.0,99614.0,0.045185]
[1736146216662,0.3608,99615.0,99614.0,0.815185]
[1736146217264,0.3608,99615.0,99614.0,0.045185]
[1736146217467,0.3618,99615.0,99600.0,0.1]
[1736146217673,0.405989,99606.0,99600.0,0.1]
[1736146218070,0.045191,99602.0,99600.0,0.1]
[1736146218573,0.045191,99602.0,99601.0,0.01569865]
[1736146219172,0.045191,99602.0,99600.0,0.1]
[1736146219565,0.3608,99604.0,99600.0,0.1]
[1736146219766,0.3608,99604.0,99603.0,0.04519]
[1736146219962,0.3608,99604.0,99603.0,0.06088902]
[1736146220667,0.18030991,99604.0,99603.0,0.06088902]
[1736146220863,0.13140991,99604.0,99603.0,0.04519]
[1736146221059,0.36148,99620.0,99601.0,0.0313]
[1736146221265,0.3608,99620.0,99618.0,0.045183]
[1736146222275,0.04882655,99619.0,99618.0,0.045183]
[1736146222881,0.04882655,99619.0,99618.0,0.046183]
[1736146223872,0.04982655,99619.0,99618.0,0.046183]
[1736146224274,0.04982655,99619.0,99618.0,0.816183]
[1736146224979,0.001,99619.0,99618.0,0.816183]
[1736146226777,0.001,99619.0,99618.0,0.046183]
[1736146234489,0.12091601,99619.0,99618.0,0.046183]
[1736146235895,0.001,99619.0,99618.0,0.046183]
[1736146251796,0.04982189,99619.0,99618.0,0.001]
[1736146255295,0.05912778,99619.0,99618.0,0.001]
[1736146256593,0.04982189,99619.0,99618.0,0.046183]
[1736146257200,0.0497322,99619.0,99618.0,0.816183]
[1736146259302,0.00091031,99619.0,99618.0,0.816183]
[1736146264706,0.12109009,99619.0,99618.0,0.816183]
[1736146265907,0.00091031,99619.0,99618.0,0.816183]
[1736146274209,0.12109009,99619.0,99618.0,0.816183]
[1736146275511,0.00091031,99619.0,99618.0,0.816183]
[1736146281515,0.12094312,99619.0,99618.0,0.816183]
[1736146282014,0.12094312,99619.0,99618.0,0.046183]
[1736146282806,0.00091031,99619.0,99618.0,0.001]
[1736146285414,0.01019418,99619.0,99618.0,0.001]
[1736146286013,0.05901718,99619.0,99618.0,0.001]
[1736146296731,0.01019418,99619.0,99618.0,0.001]
[1736146297729,0.07489418,99619.0,99618.0,0.001]
[1736146299335,0.12371745,99619.0,99618.0,0.001]
[1736146302036,0.05901745,99619.0,99618.0,0.001]
[1736146306431,0.04973358,99619.0,99618.0,0.001]
[1736146306635,0.04973358,99619.0,99618.0,0.0316]
[1736146306834,0.04973358,99619.0,99618.0,0.8016]
[1736146307348,0.00091031,99619.0,99618.0,0.8016]
[1736146307534,0.00091031,99619.0,99618.0,0.0316]
[1736146308340,0.15113679,99619.0,99618.0,0.0316]
[1736146309549,0.00091031,99619.0,99618.0,0.0316]
[1736146312143,0.00091031,99619.0,99618.0,0.21220789]
[1736146313355,0.00091031,99619.0,99618.0,0.0316]
[1736146319447,0.00091031,99619.0,99618.0,0.21221036]
[1736146321859,0.00091031,99619.0,99618.0,0.0316]
[1736146324359,0.00091031,99619.0,99618.0,0.001]
[1736146326362,0.04973259,99619.0,99618.0,0.001]
[1736146335771,0.00091031,99619.0,99618.0,0.001]
[1736146336872,0.03411031,99619.0,99618.0,0.001]
[1736146337068,0.18451646,99619.0,99618.0,0.001]
[1736146337962,0.22969946,99619.0,99618.0,0.001]
[1736146338167,0.12811475,99619.0,99618.0,0.001]
[1736146338672,0.12811475,99619.0,99618.0,0.016696]
[1736146339361,0.07929331,99619.0,99618.0,0.016696]
[1736146340475,0.12811475,99619.0,99618.0,0.016696]
[1736146342374,0.08293175,99619.0,99618.0,0.016696]
[1736146343672,0.04973175,99619.0,99618.0,0.046183]
[1736146345671,0.04973175,99619.0,99618.0,0.001]
[1736146348877,0.04973175,99619.0,99618.0,0.18170229]
[1736146350782,0.04973175,99619.0,99618.0,0.001]
[1736146360788,0.04973175,99619.0,99618.0,0.771]
[1736146370194,0.04973175,99619.0,99618.0,0.001]
[1736146370897,0.04973175,99619.0,99618.0,0.771]
[1736146375195,0.04973175,99619.0,99618.0,0.001]
[1736146383798,0.04973175,99619.0,99618.0,0.046183]
[1736146384302,0.04973175,99619.0,99618.0,0.001]
[1736146386009,0.18973175,99619.0,99611.0,0.24063445]
[1736146386209,0.405986,99612.0,99611.0,0.24063445]
[1736146386609,0.045189,99605.0,99600.0,0.1]
[1736146386807,0.3608,99601.0,99600.0,0.1]
[1736146387402,0.3608,99601.0,99600.0,0.11569885]
[1736146388525,0.40962144,99601.0,99600.0,0.11569885]
[1736146388931,0.41062144,99601.0,99600.0,0.11569885]
[1736146389131,0.41062144,99601.0,99600.0,0.1]
[1736146392033,0.42017659,99601.0,99600.0,0.1]
[1736146394137,0.5216498,99601.0,99600.0,0.1]
[1736146395536,0.37135515,99601.0,99600.0,0.1]
[1736146404342,0.42018919,99601.0,99600.0,0.1]
[1736146406441,0.05938919,99601.0,99600.0,0.1]
[1736146408241,0.01055515,99601.0,99600.0,0.1]
[1736146412449,0.1608525,99601.0,99600.0,0.1]
[1736146413852,0.01055515,99601.0,99600.0,0.1]
[1736146416343,0.23993774,99601.0,99600.0,0.1]
[1736146418949,0.05938739,99601.0,99600.0,0.1]
[1736146427458,0.23993774,99601.0,99600.0,0.1]
[1736146430966,0.05938739,99601.0,99600.0,0.1]
[1736146431968,0.01055515,99601.0,99600.0,0.1]
[1736146433267,0.05938739,99601.0,99600.0,0.1]
[1736146456484,0.05938739,99601.0,99600.0,0.28066955]
[1736146458886,0.05938739,99601.0,99600.0,0.1]
[1736146459490,0.04983224,99601.0,99600.0,0.4608]
[1736146459689,0.04983224,99601.0,99600.0,0.491]
[1736146459892,0.04983224,99601.0,99600.0,1.261]
[1736146461796,0.001,99601.0,99600.0,1.261]
[1736146467199,0.001,99601.0,99600.0,1.44135439]
[1736146468899,0.001,99601.0,99600.0,1.261]
[1736146478806,0.001,99601.0,99600.0,0.9002]
[1736146479006,0.001,99601.0,99600.0,1.261]
[1736146484502,0.001,99601.0,99600.0,1.44143407]
[1736146486102,0.001,99601.0,99600.0,1.261]
[1736146486813,0.001,99601.0,99600.0,1.2308]
[1736146500023,0.001,99601.0,99600.0,1.47177438]
[1736146501414,0.001,99601.0,99600.0,1.2308]
[1736146502226,0.001,99601.0,99600.0,0.87]
[1736146502417,0.001,99601.0,99600.0,1.2308]
[1736146516629,0.001,99601.0,99600.0,0.4608]
[1736146516831,0.001,99601.0,99600.0,0.1]
[1736146517425,0.046191,99601.0,99600.0,0.0501]
[1736146517625,0.046191,99601.0,99600.0,0.0002]
[1736146518026,0.5758576,99601.0,99600.0,0.0002]
[1736146518230,0.045194,99594.0,99593.0,0.24106697]
[1736146518530,0.045197,99588.0,99579.0,0.77150624]
[1736146518735,0.405997,99588.0,99579.0,0.77202624]
[1736146519235,0.405997,99588.0,99579.0,0.00202624]
[1736146519423,0.405997,99588.0,99579.0,0.00150624]
[1736146519826,0.045198,99585.0,99579.0,0.00150624]
[1736146520026,0.3608,99580.0,99579.0,0.00150624]
[1736146521028,0.4096311,99580.0,99579.0,0.00150624]
[1736146521221,0.4106311,99580.0,99579.0,0.00150624]
[1736146522733,0.3618,99580.0,99579.0,0.00150624]
[1736146524329,0.407001,99580.0,99579.0,0.00150624]
[1736146525034,0.045201,99579.0,99571.0,0.77]
[1736146525433,0.36240001,99580.0,99571.0,0.77]
[1736146525730,0.36240001,99580.0,99540.0,0.045219]
[1736146525731,0.045207,99567.0,99559.0,0.04521]
[1736146526039,0.045208,99565.0,99560.0,0.77]
[1736146526234,0.3608,99562.0,99559.0,0.04521]
[1736146527730,0.11989576,99561.0,99559.0,0.04521]
[1736146528730,0.04521,99559.0,99550.0,0.045214]
[1736146528934,0.04521,99559.0,99551.0,0.01570475]
[1736146529236,0.04521,99559.0,99552.0,0.01570475]
[1736146529442,0.04521,99559.0,99553.0,0.01570475]
[1736146529735,0.04521,99559.0,99550.0,0.045214]
[1736146529736,0.04521,99559.0,99554.0,0.01570475]
[1736146530042,0.04521,99559.0,99555.0,0.01570475]
[1736146530335,0.04521,99559.0,99556.0,0.01570475]
[1736146530540,0.04621,99559.0,99556.0,0.01570475]
[1736146530835,0.04621,99559.0,99550.0,0.045214]
[1736146530836,0.04721,99559.0,99557.0,0.01570475]
[1736146531335,0.04621,99559.0,99558.0,0.01570475]
[1736146531637,0.04721,99559.0,99558.0,0.01570475]
[1736146532029,0.04621,99559.0,99558.0,0.78570475]
[1736146532230,0.04721,99559.0,99558.0,0.78570475]
[1736146532632,0.04621,99559.0,99558.0,0.78570475]
[1736146534233,0.04521,99559.0,99558.0,0.78570475]
[1736146534440,0.04621,99559.0,99558.0,0.78570475]
[1736146537829,0.04621,99559.0,99558.0,0.77]
[1736146539040,0.001,99559.0,99558.0,0.77]
[1736146539232,0.001,99559.0,99558.0,0.8022]
[1736146541041,0.001,99559.0,99558.0,0.847411]
[1736146541537,0.37155622,99562.0,99558.0,0.8022]
[1736146541839,0.37095621,99562.0,99561.0,0.045209]
[1736146544429,0.37195621,99562.0,99561.0,0.045209]
[1736146545133,0.37095621,99562.0,99561.0,0.045209]
[1736146545334,0.37195621,99562.0,99561.0,0.045209]
[1736146546038,0.37095621,99562.0,99561.0,0.045209]
[1736146546240,0.41980913,99562.0,99561.0,0.045209]
[1736146547643,0.60011823,99562.0,99556.0,0.0324]
[1736146548141,0.60011823,99562.0,99561.0,0.045209]
[1736146548543,0.41980913,99562.0,99561.0,0.045209]
[1736146549242,0.42080913,99562.0,99561.0,0.045209]
[1736146551042,0.41980913,99562.0,99561.0,0.045209]
[1736146551537,0.59999407,99562.0,99561.0,0.045209]
[1736146552946,0.41980913,99562.0,99561.0,0.045209]
[1736146554347,0.36144,99573.0,99572.0,0.045204]
[1736146554651,0.20979883,99579.0,99578.0,0.045202]
[1736146555040,0.20979883,99579.0,99578.0,0.815202]
[1736146555442,0.3608,99583.0,99578.0,0.77]
[1736146555443,0.15377563,99582.0,99578.0,0.77]
[1736146555637,0.15377563,99582.0,99581.0,0.0452]
[1736146557048,0.18039884,99585.0,99584.0,0.045199]
[1736146558252,0.00150694,99587.0,99581.0,0.00981673]
[1736146558447,0.00150694,99587.0,99586.0,0.045198]
[1736146561355,0.1565284,99587.0,99586.0,0.045198]
[1736146562543,0.00650694,99587.0,99586.0,0.045198]
[1736146563151,0.005,99587.0,99586.0,0.045198]
[1736146563854,0.15002146,99588.0,99586.0,0.045198]
[1736146564047,0.15002146,99588.0,99583.0,0.3608]
[1736146564048,0.11994152,99588.0,99583.0,0.3608]
[1736146564248,0.11994152,99588.0,99587.0,0.045197]
[1736146564649,0.15002146,99594.0,99593.0,0.045195]
[1736146565042,0.15002146,99594.0,99593.0,0.815195]
[1736146565658,0.00060001,99602.0,99593.0,0.77]
[1736146565952,0.15002146,99603.0,99601.0,0.045191]
[1736146567157,0.00150635,99612.0,99601.0,0.045191]
[1736146567158,0.08987888,99602.0,99601.0,0.045191]
[1736146567564,0.09087888,99602.0,99601.0,0.045191]
[1736146568161,0.08987888,99602.0,99601.0,0.045191]
[1736146568456,0.09087888,99602.0,99601.0,0.052191]
[1736146568661,0.001,99602.0,99601.0,0.06231877]
[1736146569063,0.08987888,99603.0,99601.0,0.05831877]
[1736146569264,0.001,99602.0,99601.0,0.06431877]
[1736146570658,0.001,99602.0,99601.0,0.06131877]
[1736146570855,0.08987888,99605.0,99604.0,0.04519]
[1736146572158,0.09087888,99605.0,99604.0,0.05019]
[1736146578962,0.001,99605.0,99604.0,0.05019]
[1736146579573,0.001,99605.0,99604.0,0.41099]
[1736146580558,0.00150635,99612.0,99604.0,0.3628]
[1736146580763,0.001,99605.0,99604.0,0.3658]
[1736146581271,0.00150635,99612.0,99610.0,0.045187]
[1736146581970,0.00150635,99612.0,99611.0,0.77]
[1736146582363,0.00250635,99612.0,99611.0,0.77]
[1736146583876,0.00150635,99612.0,99611.0,0.771]
[1736146584074,0.00250635,99612.0,99611.0,0.771]
[1736146584562,0.00150635,99612.0,99611.0,0.774]
[1736146584964,0.15152781,99612.0,99611.0,0.774]
[1736146586768,0.05033184,99612.0,99611.0,0.774]
[1736146587976,0.00150635,99612.0,99611.0,0.774]
[1736146589277,0.04882549,99612.0,99611.0,0.774]
[1736146590589,0.18039884,99616.0,99611.0,0.773]
[1736146590791,0.18039884,99616.0,99615.0,0.045185]
[1736146592387,0.18039884,99616.0,99615.0,0.047185]
[1736146593388,0.04882549,99618.0,99617.0,0.045184]
[1736146595092,0.19884116,99618.0,99617.0,0.046184]
[1736146595490,0.19884116,99618.0,99617.0,0.001]
[1736146595883,0.19884116,99618.0,99617.0,0.046184]
[1736146600593,0.18055223,99622.0,99621.0,0.045182]
[1736146601579,0.18155223,99622.0,99621.0,0.045182]
[1736146603192,0.23037772,99622.0,99621.0,0.045182]
[1736146605987,0.04982549,99622.0,99621.0,0.045182]
[1736146607297,0.001,99622.0,99621.0,0.045182]
[1736146608902,0.04982549,99622.0,99621.0,0.045182]
[1736146635113,0.19966929,99622.0,99621.0,0.045182]
[1736146636409,0.04982549,99622.0,99621.0,0.045182]
[1736146636707,0.04982549,99622.0,99616.0,0.3608]
[1736146637013,0.04982549,99622.0,99610.0,0.23976322]
[1736146637014,0.045185,99614.0,99610.0,0.23976322]
[1736146637219,0.0309,99613.0,99610.0,0.23976322]
[1736146637412,0.0617,99613.0,99610.0,0.23976322]
[1736146637610,0.045186,99612.0,99610.0,0.23976322]
[1736146638015,0.045186,99612.0,99602.0,0.23976322]
[1736146638713,0.11052549,99613.0,99602.0,0.23976322]
[1736146638917,0.045189,99606.0,99602.0,0.23976322]
[1736146639115,0.15571149,99613.0,99610.0,0.004]
[1736146639323,0.09401249,99611.0,99610.0,0.004]
[1736146639720,0.04882549,99611.0,99601.0,0.045191]
[1736146639927,0.045188,99609.0,99604.0,0.3678]
[1736146640314,0.045188,99609.0,99604.0,0.3628]
[1736146640713,0.045188,99609.0,99604.0,0.3608]
[1736146641921,0.04882549,99608.0,99604.0,0.3608]
[1736146642122,0.04882549,99608.0,99604.0,0.3658]
[1736146643222,0.15034657,99605.0,99604.0,0.3658]
[1736146643523,0.15034657,99605.0,99604.0,0.3678]
[1736146644419,0.15034657,99606.0,99604.0,0.3678]
[1736146645321,0.15034657,99606.0,99604.0,0.3628]
[1736146645623,0.001,99605.0,99604.0,0.3678]
[1736146646023,0.15134657,99606.0,99604.0,1.1378]
[1736146646212,0.15134657,99606.0,99598.0,0.1806634]
[1736146646415,0.045192,99599.0,99598.0,0.1806634]
[1736146646919,0.19553857,99599.0,99596.0,0.00150605]
[1736146649425,0.19653857,99599.0,99596.0,0.00150605]
[1736146650715,0.19653857,99599.0,99596.0,0.00250605]
[1736146651325,0.19653857,99599.0,99596.0,0.00150605]
[1736146651621,0.01118755,99599.0,99597.0,0.045193]
[1736146651822,0.15034657,99601.0,99596.0,0.00250605]
[1736146652024,0.15034657,99601.0,99600.0,0.045192]
[1736146652627,0.15034657,99601.0,99600.0,0.815192]
[1736146653127,0.001,99601.0,99600.0,0.815192]
[1736146653522,0.00998442,99601.0,99600.0,0.815192]
[1736146653724,0.15034657,99602.0,99600.0,0.815192]
[1736146654415,0.15034657,99602.0,99600.0,0.045192]
[1736146654920,0.15034657,99602.0,99600.0,0.046192]
[1736146655827,0.16043706,99602.0,99600.0,0.046192]
[1736146657531,0.15034657,99602.0,99600.0,0.046192]
[1736146661621,0.15034657,99601.0,99600.0,0.046192]
[1736146662720,0.15034657,99601.0,99600.0,0.001]
[1736146662925,0.0322,99602.0,99586.0,0.045198]
[1736146663122,0.3608,99589.0,99586.0,0.045198]
[1736146663430,0.045199,99585.0,99582.0,0.1806634]
[1736146664423,0.045199,99585.0,99580.0,0.3608]
[1736146665233,0.045199,99585.0,99582.0,0.001]
[1736146665732,0.15037058,99584.0,99582.0,0.001]
[1736146666932,0.15037058,99583.0,99582.0,0.001]
[1736146667329,0.15037058,99583.0,99581.0,0.0452]
[1736146668329,0.04883916,99584.0,99582.0,0.045199]
[1736146668525,0.04983916,99584.0,99582.0,0.045199]
[1736146669033,0.04883916,99584.0,99582.0,0.045199]
[1736146669835,0.40659701,99589.0,99582.0,0.045199]
[1736146670135,0.405997,99589.0,99582.0,0.045199]
[1736146670330,0.405997,99589.0,99573.0,0.98456969]
[1736146670532,0.37085322,99589.0,99579.0,0.0635182]
[1736146670738,0.37085322,99589.0,99585.0,0.045198]
[1736146670929,0.04883983,99588.0,99585.0,0.045198]
[1736146672329,0.15038543,99588.0,99585.0,0.045198]
[1736146673925,0.15138543,99588.0,99580.0,0.3608]